bitfinex/quotes_ETHUSD_20241001
["timestamp","ask_amount","ask_price","bid_price","bid_amount"]
[1727824940255,3.25615,2456.9,2456.7,0.0111]
[1727824940768,3.0,2457.0,2456.7,0.0111]
[1727824940964,6.25604,2457.0,2456.7,0.0111]
[1727824942175,3.25613,2456.9,2456.7,0.0111]
[1727824943992,3.25591,2457.1,2456.7,0.0111]
[1727824944160,3.25569,2457.3,2456.8,4.07896]
[1727824944359,0.0392,2457.4,2456.9,3.25605]
[1727824944563,10.67441,2457.6,2457.1,3.2558]
[1727824944874,0.42585539,2457.4,2457.1,3.2558]
[1727824945201,10.67441,2457.6,2457.1,3.2558]
[1727824945493,3.25535,2457.5,2457.0,3.25595]
[1727824945702,3.25535,2457.5,2457.0,4.43535453]
[1727824945858,6.51081,2457.5,2457.0,4.43535453]
[1727824946071,3.25535,2457.5,2457.0,4.43535453]
[1727824946506,3.25555,2457.4,2457.0,1.17940453]
[1727824946705,3.25594,2457.1,2456.7,0.0111]
[1727824946907,0.0392,2457.3,2456.7,3.26749]
[1727824947120,0.3615649,2457.0,2456.8,3.25615]
[1727824947321,0.3615649,2457.0,2456.9,3.91663389]
[1727824947486,6.51114,2457.4,2456.9,3.91663389]
[1727824947686,3.2557,2457.3,2456.7,6.52379]
[1727824948009,3.2557,2457.3,2456.7,6.52372]
[1727824948494,3.2557,2457.3,2456.8,3.25617]
[1727824949477,3.25556,2457.4,2456.9,3.25612]
[1727824950006,6.51112,2457.4,2456.9,3.25612]
[1727824950198,6.51112,2457.4,2456.9,3.908472]
[1727824951016,3.25564,2457.3,2456.9,3.908472]
[1727824951342,3.25556,2457.4,2456.9,3.908472]
[1727824951878,6.51115,2457.4,2456.9,3.908472]
[1727824952092,6.51114,2457.4,2456.9,3.908472]
[1727824952392,3.25556,2457.4,2456.9,3.908472]
[1727824952893,6.51111,2457.4,2456.9,3.908472]
[1727824953090,3.25555,2457.4,2456.9,3.908472]
[1727824953680,6.51111,2457.4,2456.9,3.908472]
[1727824954553,3.25566,2457.3,2456.9,0.652352]
[1727824954684,3.25566,2457.3,2456.8,3.25625]
[1727824954883,3.25555,2457.4,2456.9,3.25605]
[1727824955280,6.51115,2457.4,2457.0,0.755]
[1727824955481,3.25555,2457.4,2457.0,0.755]
[1727824955793,3.25555,2457.4,2457.0,1.48173]
[1727824956320,6.51112,2457.4,2457.0,1.48173]
[1727824956629,3.25555,2457.4,2457.0,1.48173]
[1727824956926,6.51109,2457.4,2457.0,1.48173]
[1727824957476,3.25554,2457.4,2457.0,1.48173]
[1727824958600,3.25554,2457.4,2457.0,0.755]
[1727824958806,6.5111,2457.4,2457.0,0.755]
[1727824959323,3.25554,2457.4,2457.0,0.755]
[1727824959519,6.25496,2457.8,2456.7,3.2674]
[1727824959520,3.25587,2457.1,2456.7,3.2674]
[1727824959818,3.25587,2457.1,2456.7,0.0111]
[1727824959991,3.25607,2457.0,2456.7,0.0111]
[1727824961828,0.36179663,2456.9,2456.7,0.0111]
[1727824962985,0.36179663,2456.9,2456.8,4.07136]
[1727824963190,3.29494,2457.2,2456.8,4.07136]
[1727824963685,0.36179663,2457.1,2456.8,4.07136]
[1727824964289,0.36179663,2457.1,2456.8,4.805258]
[1727824964636,0.36179663,2457.1,2456.8,4.805198]
[1727824964927,0.36179663,2457.0,2456.8,4.805198]
[1727824965082,6.2556,2457.3,2456.8,4.805198]
[1727824965282,0.36179663,2457.2,2456.8,4.0713]
[1727824965523,6.2556,2457.3,2456.8,4.0713]
[1727824965739,0.36179663,2457.1,2456.8,4.0713]
[1727824966101,6.2556,2457.3,2456.8,4.0713]
[1727824966301,0.36179663,2457.2,2456.8,4.0713]
[1727824966503,6.2556,2457.3,2456.8,4.0713]
[1727824966698,0.36179663,2457.2,2456.8,4.0713]
[1727824966904,6.2556,2457.3,2456.8,4.0713]
[1727824967202,0.36179663,2457.2,2456.8,4.0713]
[1727824967403,6.2556,2457.3,2456.8,4.0713]
[1727824967933,3.61740871,2457.2,2456.7,3.26742]
[1727824968529,3.61740871,2457.2,2456.7,0.0111]
[1727824968530,3.25589,2457.1,2456.7,0.0111]
[1727824968720,3.61757078,2457.1,2456.7,0.0111]
[1727824969392,4.47086782,2457.1,2456.7,0.0111]
[1727824970091,1.21497782,2457.1,2456.7,0.0111]
[1727824970291,1.21497782,2457.1,2456.9,3.2561]
[1727824970292,0.36168078,2457.1,2456.9,3.2561]
[1727824970601,0.36168078,2457.1,2457.0,0.8151]
[1727824971017,0.36168078,2457.1,2457.0,4.0711]
[1727824972691,0.36168078,2457.1,2457.0,0.8151]
[1727824973489,0.36168078,2457.1,2456.8,0.8151]
[1727824973726,0.85329704,2457.0,2456.7,3.26741]
[1727824974035,0.36162007,2456.9,2456.8,3.2562]
[1727824974391,0.85329704,2457.1,2456.8,3.2562]
[1727824974690,0.36158697,2457.0,2456.7,7.257646]
[1727824975017,0.36158697,2457.0,2456.7,4.001316]
[1727824975018,1.21488401,2457.0,2456.7,4.001316]
[1727824975229,0.85329704,2456.9,2456.7,3.26741]
[1727824975529,0.36158697,2457.0,2456.7,3.26741]
[1727824975530,0.85329704,2457.0,2456.8,3.25626]
[1727824975692,0.85329704,2457.0,2456.7,3.26741]
[1727824975693,0.85329704,2457.0,2456.7,3.26748]
[1727824975893,0.85329704,2456.9,2456.7,3.26748]
[1727824976704,0.36155938,2456.8,2456.7,3.26748]
[1727824976934,0.36155938,2456.8,2456.7,0.0111]
[1727824977404,1.21485642,2456.8,2456.7,0.0111]
[1727824978039,0.36155938,2456.8,2456.7,0.0111]
[1727824978336,1.21485642,2456.8,2456.7,0.0111]
[1727824978545,0.36155938,2456.8,2456.7,3.2675]
[1727824978694,0.36155938,2456.8,2456.7,3.675766]
[1727824982399,1.21485642,2456.8,2456.7,0.0111]
[1727824982959,1.21485642,2456.8,2456.7,3.2675]
[1727824983300,1.21485642,2456.8,2456.7,0.0111]
[1727824985244,1.21485642,2456.8,2456.7,3.2675]
[1727824988552,1.21485642,2456.8,2456.7,0.0111]
[1727824988736,0.36155938,2456.8,2456.7,0.0111]
[1727824989058,1.21431406,2456.8,2456.7,8.17185864]
[1727824989210,0.36155938,2456.8,2456.7,8.11254601]
[1727824989409,0.85275468,2457.0,2456.9,3.25613]
[1727824989622,0.36146009,2457.0,2456.9,3.25613]
[1727824989843,0.36146009,2457.0,2456.9,4.3929816]
[1727824990749,1.6816382,2457.0,2456.7,0.0111]
[1727824990951,0.85279,2456.8,2456.7,0.0111]
[1727824991512,1.21425009,2456.8,2456.7,0.0111]
[1727824993123,0.36146009,2456.8,2456.7,0.0111]
[1727824993520,1.6406451,2456.8,2456.7,0.0111]
[1727824994263,1.21448196,2456.8,2456.7,0.0111]
[1727824994619,1.21449332,2456.8,2456.7,0.0111]
[1727824995402,1.21449332,2456.8,2456.7,3.2675]
[1727824996857,0.36146009,2456.8,2456.7,3.2675]
[1727824997295,1.21449332,2456.8,2456.7,3.2675]
[1727824998884,0.36146009,2456.8,2456.7,3.2675]
[1727824999480,0.36146009,2456.8,2456.7,3.998674]
[1727824999683,0.36146009,2456.8,2456.7,4.753074]
[1727825000274,1.21449332,2456.8,2456.7,3.2675]
[1727825000582,1.21449332,2456.8,2456.7,0.0111]
[1727825001219,1.6406451,2456.8,2456.7,0.0111]
[1727825002897,1.21523705,2456.8,2456.7,0.0111]
[1727825003117,1.6406451,2456.8,2456.7,0.0111]
[1727825003429,1.6406451,2456.8,2456.7,3.2675]
[1727825003623,0.36146009,2456.8,2456.7,3.2675]
[1727825004131,1.6406451,2456.8,2456.7,3.2675]
[1727825005905,1.6406451,2456.8,2456.7,0.0111]
[1727825007729,2.06943091,2456.8,2456.7,0.0111]
[1727825008038,3.14106496,2456.8,2456.7,0.0111]
[1727825009009,0.36146009,2456.8,2456.7,0.0111]
[1727825010042,1.64325223,2456.8,2456.7,0.0111]
[1727825011473,0.36146009,2456.8,2456.7,0.0111]
[1727825011760,1.64343759,2456.8,2456.7,0.0111]
[1727825012037,0.36146009,2456.8,2456.7,0.0111]
[1727825012220,1.64348732,2456.8,2456.7,0.0111]
[1727825012553,2.06943091,2456.8,2456.7,0.0111]
[1727825013342,0.36146009,2456.8,2456.7,0.0111]
[1727825013541,1.64401526,2456.8,2456.7,0.0111]
[1727825014843,0.36146009,2456.8,2456.7,0.0111]
[1727825015142,1.64408578,2456.8,2456.7,0.0111]
[1727825015337,0.36146009,2456.8,2456.7,0.0111]
[1727825015957,2.06943091,2456.8,2456.7,0.0111]
[1727825016473,0.36146009,2456.8,2456.7,3.2675]
[1727825016658,1.21659732,2456.8,2456.7,8.89250972]
[1727825016862,0.36146009,2456.8,2456.7,8.81110903]
[1727825023381,0.85513723,2457.0,2456.7,5.55470903]
[1727825023553,0.85513723,2457.0,2456.9,3.25613]
[1727825024145,0.85513723,2457.1,2457.0,3.256]
[1727825024347,0.85513723,2457.2,2457.0,4.06]
[1727825024583,0.85513723,2457.2,2457.1,3.25587]
[1727825024974,0.85513723,2457.3,2457.1,6.98042326]
[1727825025155,0.85513723,2457.4,2457.3,3.2556]
[1727825025384,0.85513723,2457.5,2457.4,3.25547]
[1727825025744,1.28264341,2457.7,2457.5,3.25534]
[1727825025745,0.85513723,2457.6,2457.5,3.25534]
[1727825026957,3.25534,2457.5,2457.0,0.804]
[1727825027147,3.25534,2457.5,2457.0,3.25594]
[1727825027148,0.85421041,2457.3,2457.0,3.25594]
[1727825027353,0.85421041,2457.3,2456.9,3.25613]
[1727825027354,0.85421041,2457.2,2456.9,3.25613]
[1727825027544,0.85421041,2457.2,2457.0,3.25591]
[1727825027799,0.85421041,2457.2,2456.9,3.25613]
[1727825028289,0.85421041,2457.2,2456.9,6.51217]
[1727825028644,0.85421041,2457.2,2457.0,3.25595]
[1727825029087,0.85421041,2457.2,2456.9,3.25604]
[1727825029295,1.67196256,2457.2,2456.9,3.25604]
[1727825029502,0.85421041,2457.1,2456.9,3.25604]
[1727825029793,0.89341041,2457.1,2456.8,3.25619]
[1727825029961,0.89341041,2457.1,2456.9,3.25611]
[1727825030877,0.89341041,2457.1,2456.8,3.25625]
[1727825031454,0.89341041,2457.1,2456.9,3.25613]
[1727825032591,0.85421041,2457.0,2456.9,3.25613]
[1727825032750,0.89341041,2457.1,2456.9,3.25613]
[1727825033147,0.85421041,2457.0,2456.7,0.0111]
[1727825033387,0.85421041,2456.8,2456.7,0.0111]
[1727825033958,0.85421041,2456.9,2456.7,0.0111]
[1727825034149,0.85421041,2456.8,2456.7,0.0111]
[1727825034590,0.85421041,2456.9,2456.7,0.0111]
[1727825034763,0.85421041,2456.8,2456.7,0.0111]
[1727825034962,0.85421041,2456.8,2456.7,3.2675]
[1727825035181,1.28131561,2456.9,2456.7,3.2675]
[1727825035182,0.85421041,2456.9,2456.7,3.2675]
[1727825035558,0.85421041,2456.8,2456.7,0.0111]
[1727825036794,1.21581394,2456.8,2456.7,0.0111]
[1727825038785,0.36160353,2456.8,2456.7,3.2675]
[1727825039772,1.21581394,2456.8,2456.7,3.2675]
[1727825040787,1.21581394,2456.8,2456.7,0.0111]
[1727825041706,0.36160353,2456.8,2456.7,0.0111]
[1727825041998,2.62922414,2456.8,2456.7,0.0111]
[1727825042495,1.34790853,2456.8,2456.7,0.0111]
[1727825042670,2.66842414,2456.8,2456.7,0.0111]
[1727825043906,6.77843438,2456.8,2456.7,0.0111]
[1727825044110,8.19336853,2456.8,2456.7,0.0111]
[1727825045166,10.75544755,2456.8,2456.7,0.0111]
[1727825045367,8.19336853,2456.8,2456.7,0.0111]
[1727825047545,10.32844857,2456.8,2456.7,0.0111]
[1727825047696,10.32847994,2456.8,2456.7,0.0111]
[1727825048203,8.19336853,2456.8,2456.7,0.0111]
[1727825048561,10.32817865,2456.8,2456.7,0.0111]
[1727825048804,10.32817974,2456.8,2456.7,0.0111]
[1727825049714,10.32779799,2456.8,2456.7,0.0111]
[1727825050703,8.19336853,2456.8,2456.7,0.0111]
[1727825051290,10.3274341,2456.8,2456.7,0.0111]
[1727825052436,10.32684177,2456.8,2456.7,0.0111]
[1727825054437,10.32648162,2456.8,2456.7,0.0111]
[1727825054935,8.19336853,2456.8,2456.7,0.0111]
[1727825055310,7.64336853,2456.8,2456.7,0.0111]
[1727825055507,8.36326682,2456.8,2456.7,0.0111]
[1727825057619,6.65706353,2456.8,2456.7,0.0111]
[1727825057825,7.93644765,2456.8,2456.7,0.0111]
[1727825058438,8.48637143,2456.8,2456.7,0.0111]
[1727825058649,27.74540052,2456.8,2456.7,0.0111]
[1727825058931,14.8254114,2456.8,2456.7,0.0111]
[1727825059135,11.4041754,2456.8,2456.7,0.0111]
[1727825059434,7.63298939,2456.8,2456.7,0.0111]
[1727825060709,14.59498839,2456.8,2456.7,0.0111]
[1727825060906,11.96676839,2456.8,2456.7,0.0111]
[1727825061105,7.63298939,2456.8,2456.7,0.0111]
[1727825061333,9.76458969,2456.8,2456.7,0.0111]
[1727825061639,9.18016846,2456.8,2456.7,0.0111]
[1727825062011,11.31176876,2456.8,2456.7,0.0111]
[1727825063205,10.88507775,2456.8,2456.7,0.0111]
[1727825064404,1.64015772,2456.8,2456.7,0.0111]
[1727825064628,0.36160353,2456.8,2456.7,0.0111]
[1727825064950,0.36160353,2456.8,2456.7,0.8382]
[1727825065301,3.61786353,2456.8,2456.7,0.8382]
[1727825065500,3.25626,2456.8,2456.7,0.0111]
[1727825065712,4.4814488,2456.8,2456.7,0.0111]
[1727825065906,3.61710748,2456.8,2456.7,0.0111]
[1727825067048,0.36084748,2456.8,2456.7,0.0111]
[1727825067503,3.61710748,2456.8,2456.7,0.0111]
[1727825070341,0.36084748,2456.8,2456.7,0.0111]
[1727825070740,0.85236898,2457.0,2456.7,0.0111]
[1727825071039,4.10830898,2457.1,2456.7,1.511019]
[1727825071244,4.10830898,2457.1,2456.7,4.767419]
[1727825071245,0.36106276,2457.0,2456.7,4.767419]
[1727825071542,0.36106276,2457.0,2456.7,1.511019]
[1727825072286,0.36106276,2457.0,2456.9,4.02093]
[1727825072585,0.8528531,2457.5,2457.4,0.7648]
[1727825072720,1.27855419,2457.6,2457.4,0.7648]
[1727825072721,0.8528531,2457.6,2457.4,0.7648]
[1727825072905,0.8528531,2457.5,2457.4,0.7648]
[1727825073107,0.8528531,2457.5,2457.0,0.7648]
[1727825073108,3.25547,2457.4,2457.0,0.7648]
[1727825073354,0.85304076,2457.4,2457.0,4.02073]
[1727825073509,3.25534,2457.5,2457.1,0.727675]
[1727825073510,4.10838076,2457.5,2457.1,0.727675]
[1727825073862,3.25573,2457.3,2457.0,0.7648]
[1727825074057,0.85304076,2457.3,2457.0,0.7648]
[1727825074251,0.85304076,2457.2,2457.0,0.7648]
[1727825074477,0.85304076,2457.4,2457.1,0.7648]
[1727825074662,1.70490929,2457.6,2457.5,3.25534]
[1727825074663,0.85304076,2457.6,2457.5,3.25534]
[1727825074964,0.85304076,2458.0,2457.7,4.01976]
[1727825075251,0.85304076,2458.0,2457.7,0.7648]
[1727825075252,4.10774076,2458.0,2457.7,0.7648]
[1727825075824,0.85304076,2458.1,2457.7,0.7648]
[1727825077313,3.25468,2458.0,2457.7,0.7648]
[1727825077515,0.85304076,2458.1,2457.7,0.7648]
[1727825077989,4.10753076,2458.2,2457.7,0.7648]
[1727825078187,3.25455,2458.1,2457.7,0.7648]
[1727825079248,3.25443,2458.2,2457.8,3.25489]
[1727825079570,6.50947,2458.0,2457.7,0.7648]
[1727825080291,3.25482,2457.9,2457.4,0.7648]
[1727825080453,3.25482,2457.9,2457.4,4.02026]
[1727825080882,3.25496,2457.8,2457.4,0.7648]
[1727825081082,3.25482,2457.9,2457.4,0.7648]
[1727825081281,3.99094108,2458.0,2457.5,3.25527]
[1727825082151,3.61679965,2457.9,2457.5,3.25527]
[1727825082351,3.61679965,2457.9,2457.4,0.7648]
[1727825082585,3.61679965,2457.9,2457.4,4.02026]
[1727825083753,6.87172965,2457.9,2457.4,4.02026]
[1727825084181,3.61679965,2457.9,2457.4,4.02026]
[1727825084977,3.61679965,2457.9,2457.4,4.02021]
[1727825086421,0.36198965,2457.9,2457.5,3.25522]
[1727825087200,3.61680965,2457.9,2457.5,3.25522]
[1727825087396,0.36198965,2457.9,2457.5,3.25522]
[1727825087606,0.36198965,2457.9,2457.5,6.51048]
[1727825087817,0.36198965,2457.9,2457.7,3.25504]
[1727825088018,0.36198965,2457.9,2457.8,4.00514]
[1727825088362,3.25442,2458.2,2457.8,4.00514]
[1727825088475,0.3622544,2457.9,2457.8,4.00514]
[1727825088669,3.25442,2458.2,2457.8,0.7502]
[1727825088915,0.3622544,2458.1,2457.8,0.7502]
[1727825089878,3.2549,2457.9,2457.2,3.25566]
[1727825090075,3.2549,2457.9,2457.1,3.25574]
[1727825090076,3.25514,2457.7,2457.1,3.25574]
[1727825090288,0.3622544,2457.6,2457.2,0.7502]
[1727825090620,0.3622544,2457.6,2457.2,4.00592]
[1727825090972,0.3622544,2457.6,2457.2,0.7502]
[1727825090973,3.6174844,2457.6,2457.2,0.7502]
[1727825091790,3.25541,2457.5,2457.2,0.7502]
[1727825092190,0.36224337,2457.4,2457.2,0.7502]
[1727825092609,3.25522,2457.6,2457.2,4.00592]
[1727825092867,0.36224337,2457.3,2457.2,4.74023115]
[1727825093064,3.29399,2458.0,2457.6,0.7502]
[1727825093065,3.25479,2458.0,2457.6,0.7502]
[1727825093463,0.36224337,2457.9,2457.6,0.7502]
[1727825094644,3.61706337,2457.9,2457.6,0.7502]
[1727825097546,3.61706337,2457.9,2457.3,0.7502]
[1727825097786,3.25513,2457.7,2457.3,4.0058]
[1727825098090,3.25513,2457.7,2457.3,0.7502]
[1727825098392,3.25544,2457.5,2457.1,3.25586]
[1727825098893,0.36224337,2457.4,2457.1,3.25586]
[1727825100663,0.36224337,2457.4,2457.0,0.7502]
[1727825100870,0.40144337,2457.4,2456.8,0.7502]
[1727825101063,0.40144337,2457.4,2456.7,0.0111]
[1727825101064,3.25588,2457.1,2456.7,0.0111]
[1727825101449,0.36224337,2457.0,2456.7,0.0111]
[1727825101703,3.29543,2456.9,2456.7,0.0111]
[1727825102080,3.25626,2456.8,2456.7,0.0111]
[1727825102257,7.1683048,2456.8,2456.7,0.0111]
[1727825102454,8.58712561,2456.8,2456.7,0.0111]
[1727825102999,8.62632561,2456.8,2456.7,0.0111]
[1727825103208,9.47936637,2456.8,2456.7,0.0111]
[1727825103866,18.4933068,2456.8,2456.7,0.0111]
[1727825104073,18.9196619,2456.8,2456.7,0.0111]
[1727825104286,17.21475261,2456.8,2456.7,0.0111]
[1727825104483,19.34525936,2456.8,2456.7,0.0111]
[1727825104689,37.17035007,2456.8,2456.7,0.0111]
[1727825104882,39.29622913,2456.8,2456.7,0.0111]
[1727825105461,39.29574181,2456.8,2456.7,0.0111]
[1727825105899,37.17035007,2456.8,2456.7,0.0111]
[1727825106205,39.72140495,2456.8,2456.7,0.00132994]
[1727825106406,3.25797,2455.6,2455.2,0.7502]
[1727825106572,3.29694,2455.7,2455.2,0.7502]
[1727825107277,3.6199048,2455.6,2455.2,0.7502]
[1727825107744,0.3620448,2455.6,2455.2,0.7502]
[1727825108700,3.6199448,2455.6,2455.2,0.7502]
[1727825109401,0.3620448,2455.6,2455.2,4.00847]
[1727825109761,0.3620448,2455.6,2455.2,0.7502]
[1727825109962,3.25828,2455.3,2454.4,3.25935]
[1727825110217,3.25865,2455.1,2454.6,3.25916]
[1727825110692,0.36084708,2455.0,2454.6,3.25916]
[1727825111091,0.36084708,2455.0,2454.6,3.25911]
[1727825111308,0.36084708,2455.0,2454.7,3.25898]
[1727825111508,3.25835,2455.3,2454.7,3.25898]
[1727825111804,3.25853,2455.1,2454.6,3.25911]
[1727825112114,3.25853,2455.1,2454.6,3.2591]
[1727825112624,0.36084708,2455.0,2454.6,3.25909]
[1727825112777,0.36084708,2455.0,2454.6,6.5182]
[1727825113106,0.36084708,2455.0,2454.7,3.25905]
[1727825113485,3.25839,2455.2,2454.6,3.25909]
[1727825113672,0.36084708,2454.9,2454.6,3.25909]
[1727825114171,0.36084708,2454.8,2454.6,6.51819]
[1727825114395,4.26054033,2455.3,2454.6,3.25909]
[1727825114599,0.36084708,2454.7,2454.6,3.25909]
[1727825114767,4.09951652,2455.2,2454.6,3.25909]
[1727825114967,0.36084708,2454.7,2454.6,3.25909]
[1727825115413,3.25853,2455.1,2454.6,3.25909]
[1727825115572,0.35967118,2454.7,2454.6,3.25909]
[1727825115773,0.84112652,2455.2,2454.7,3.25904]
[1727825116096,4.09951652,2455.2,2454.7,3.25904]
[1727825117774,7.35797652,2455.2,2454.6,3.25909]
[1727825118176,4.09951652,2455.2,2454.6,3.25909]
[1727825118797,7.35797652,2455.2,2454.7,3.25903]
[1727825119337,4.09460869,2455.1,2454.5,4.00943]
[1727825119627,3.29779,2455.1,2454.5,4.00943]
[1727825119929,3.0,2455.0,2454.5,4.00943]
[1727825120249,3.25879,2454.9,2454.5,0.7502]
[1727825120423,3.25925,2454.6,2454.3,0.7867]
[1727825120617,0.329845,2454.5,2454.3,0.7867]
[1727825120818,3.589165,2454.5,2454.1,4.04645]
[1727825121335,3.589165,2454.5,2454.1,0.7867]
[1727825121628,3.25947,2454.4,2454.1,0.7867]
[1727825121840,0.329845,2454.5,2454.0,4.04656]
[1727825122246,0.329845,2454.5,2453.8,3.26015]
[1727825122247,3.25973,2454.2,2453.8,3.26015]
[1727825122391,3.25973,2454.2,2453.7,0.7867]
[1727825122392,6.51951,2454.2,2453.7,0.7867]
[1727825122588,3.25973,2454.2,2453.7,4.04707]
[1727825123137,3.25997,2454.1,2453.4,4.0474]
[1727825123335,3.25997,2454.1,2453.0,6.98580326]
[1727825123336,6.98488326,2453.8,2453.2,4.04763]
[1727825123494,6.98507326,2453.6,2453.2,0.7867]
[1727825123836,3.26067,2453.5,2453.0,3.26121]
[1727825124046,3.26092,2453.3,2452.9,0.7867]
[1727825124197,3.26065,2453.5,2452.8,3.26149]
[1727825124397,4.28521833,2453.5,2453.0,3.26131]
[1727825125028,1.02456833,2453.5,2453.0,3.26124]
[1727825125441,3.0,2453.7,2453.3,3.26091]
[1727825125601,7.38,2453.8,2453.3,3.26091]
[1727825125810,3.0,2453.8,2453.3,3.26091]
[1727825126578,3.99763233,2454.0,2453.4,3.26069]
[1727825126747,0.35889734,2453.7,2453.5,3.26063]
[1727825127070,3.73765233,2454.0,2453.5,6.52126]
[1727825127275,0.35889734,2453.6,2453.5,6.52126]
[1727825127572,0.35889734,2453.6,2453.5,3.26055]
[1727825127756,3.73765233,2454.0,2453.5,3.26055]
[1727825127951,1.4311129,2453.9,2453.4,3.26076]
[1727825128460,1.4311129,2453.9,2453.1,4.04785]
[1727825128461,1.4311129,2453.9,2453.5,3.26052]
[1727825128633,1.4311129,2453.9,2453.6,3.26048]
[1727825128840,0.35889734,2453.9,2453.6,3.26048]
[1727825129043,0.35889734,2453.9,2453.8,3.26024]
[1727825129451,3.0,2454.4,2453.9,3.26009]
[1727825129673,0.0392,2454.6,2454.1,3.25977]
[1727825130460,8.22112652,2455.2,2454.2,0.8205]
[1727825130461,7.02261326,2454.9,2454.2,0.8205]
[1727825130677,0.0392,2454.9,2454.3,3.25947]
[1727825130838,0.0392,2454.9,2454.5,3.2593]
[1727825131042,19.53,2454.7,2454.4,3.25939]
[1727825131284,25.11456411,2454.7,2454.2,0.8205]
[1727825131435,28.83911737,2454.7,2454.2,0.8205]
[1727825131640,3.25918,2454.6,2454.2,0.8205]
[1727825132136,3.25918,2454.6,2454.2,4.08021]
[1727825132567,3.25918,2454.6,2454.2,0.8205]
[1727825132790,2.51146141,2454.5,2454.2,0.8205]
[1727825133178,19.53,2454.7,2454.2,0.8205]
[1727825133385,19.53,2454.7,2454.5,3.25924]
[1727825134179,19.53,2454.7,2454.6,3.25918]
[1727825134380,19.53,2454.7,2454.6,4.07968]
[1727825134694,19.53,2454.9,2454.8,3.25892]
[1727825135067,19.53,2454.9,2454.8,4.07942]
[1727825135260,19.53,2455.3,2455.2,3.25839]
[1727825135462,19.53,2455.3,2454.8,4.0794]
[1727825135463,13.01311,2455.7,2455.3,3.25818]
[1727825136089,13.01311,2455.7,2455.2,3.25838]
[1727825136296,16.27087,2455.7,2455.2,3.25838]
[1727825136529,16.27087,2455.7,2455.1,3.25843]
[1727825136530,3.25788,2455.6,2455.1,3.25843]
[1727825137055,3.25835,2455.3,2454.7,4.07952]
[1727825137403,16.597345,2455.2,2454.7,4.07952]
[1727825137754,13.338945,2455.2,2454.7,4.07952]
[1727825138285,16.597405,2455.2,2454.7,4.07952]
[1727825138589,16.597405,2455.2,2454.7,0.8205]
[1727825138590,3.25854,2455.1,2454.7,0.8205]
[1727825138959,6.51715,2455.1,2454.7,0.8205]
[1727825139156,1.9856095,2455.0,2454.7,0.8205]
[1727825139385,1.9856095,2455.0,2454.5,4.07972]
[1727825140098,3.584225,2455.2,2454.7,3.25904]
[1727825140497,3.25853,2455.1,2454.5,7.33894]
[1727825140800,3.25865,2455.0,2454.5,4.07972]
[1727825141098,0.6843015,2455.0,2454.6,3.25918]
[1727825141416,0.6843015,2455.0,2454.5,0.8205]
[1727825141793,0.35860994,2454.9,2454.5,0.8205]
[1727825142000,0.35860994,2454.9,2454.5,4.07981]
[1727825143208,0.35860994,2454.9,2454.5,7.33904]
[1727825143611,0.35860994,2454.9,2454.5,4.07973]
[1727825143816,1.11461808,2454.9,2454.5,4.07973]
[1727825146084,0.35860994,2454.9,2454.5,7.33894]
[1727825146413,3.61741994,2454.9,2454.5,0.8205]
[1727825147016,3.61741994,2454.9,2454.4,3.25941]
[1727825147216,6.87628994,2454.9,2454.4,3.25941]
[1727825147520,3.61741994,2454.9,2454.4,3.25941]
[1727825147709,3.98308193,2454.9,2454.4,3.25941]
[1727825148598,3.98308193,2454.9,2454.5,3.25929]
[1727825148799,0.72427193,2454.9,2454.5,3.25929]
[1727825150279,0.72427193,2454.9,2454.5,3.25925]
[1727825151815,3.98313193,2454.9,2454.4,3.25944]
[1727825152119,3.25934,2454.5,2454.0,6.51994]
[1727825152362,3.25951,2454.4,2453.9,0.7875]
[1727825152614,0.35860994,2454.3,2453.8,3.26011]
[1727825152858,0.35860994,2454.3,2454.1,3.25982]
[1727825153003,0.35860994,2454.3,2454.2,3.25971]
[1727825153219,3.0,2454.7,2454.2,3.25971]
[1727825153379,3.0,2454.7,2454.1,4.04734]
[1727825153380,0.35860994,2454.3,2454.1,4.04734]
[1727825153577,3.95930332,2454.6,2454.1,4.04734]
[1727825153777,0.35860994,2454.5,2454.1,4.04734]
[1727825154188,0.35860994,2454.5,2454.3,3.25957]
[1727825154419,3.29822,2454.8,2454.3,3.25957]
[1727825154581,0.358339,2454.4,2454.3,3.25957]
[1727825154923,3.6645782,2454.8,2454.3,3.25957]
[1727825155419,0.358339,2454.7,2454.3,3.25957]
[1727825155820,6.9235982,2454.8,2454.3,3.25957]
[1727825156015,6.9235982,2454.8,2453.9,0.7875]
[1727825156016,1.08726502,2454.7,2453.9,0.7875]
[1727825156187,3.25938,2454.5,2453.9,0.7875]
[1727825156391,3.25995,2454.1,2453.5,0.7875]
[1727825156595,3.29937,2453.9,2453.4,3.26071]
[1727825156929,3.26027,2453.8,2453.4,3.26071]
[1727825157135,0.358339,2453.8,2453.4,3.26071]
[1727825157496,0.358339,2453.8,2453.5,3.26053]
[1727825158557,0.358339,2453.8,2453.6,3.26049]
[1727825158839,3.2991,2454.1,2453.6,3.26049]
[1727825158991,0.358339,2453.7,2453.6,3.26049]
[1727825159196,4.16747403,2454.1,2453.6,3.26049]
[1727825159397,0.358339,2454.0,2453.6,3.26049]
[1727825159929,3.618329,2454.0,2453.6,3.26049]
[1727825160547,0.358339,2454.0,2453.7,3.26028]
[1727825160836,0.358339,2454.0,2453.7,0.7649]
[1727825161046,0.358339,2454.0,2453.8,3.26022]
[1727825161239,6.55849,2454.3,2453.8,3.26022]
[1727825161441,0.358339,2453.9,2453.8,3.26022]
[1727825161598,6.55847,2454.3,2453.8,3.26022]
[1727825161599,0.0392,2454.3,2453.9,3.26008]
[1727825161800,0.358339,2454.2,2453.9,3.26008]
[1727825162134,3.84999611,2454.4,2454.0,3.2599]
[1727825162323,0.358339,2454.1,2454.0,3.2599]
[1727825162654,4.14859611,2454.5,2454.1,3.25983]
[1727825162655,0.0392,2454.5,2454.1,3.25983]
[1727825162816,3.98806602,2454.7,2454.2,0.7649]
[1727825162817,0.84999611,2454.7,2454.2,0.7649]